fUSD/lending_fUSD_20260422
["ID","MTS","AMOUNT","RATE_DAILY","PERIOD"]
[420959161,1776804638055,-1695.30567479,8.615e-05,2]
[420959162,1776804638149,-328274.33081677,8.615e-05,2]
[420959163,1776804638190,-296.53689903,8.615e-05,2]
[420959164,1776804638201,-257.14460464,8.615e-05,2]
[420959165,1776804638223,-67948.28952172,8.615e-05,2]
[420959166,1776804638233,-2500.0,8.616e-05,2]
[420959167,1776804638242,-2360.69,8.632e-05,2]
[420959168,1776804638251,-150.0,8.64e-05,2]
[420959169,1776804638261,-500.0,8.693e-05,2]
[420959170,1776804638271,-500.0,8.693e-05,2]
[420959171,1776804638280,-500.0,8.693e-05,2]
[420959172,1776804638290,-160.21436669,8.693e-05,2]
[420959173,1776804638299,-150.0,8.712e-05,2]
[420959174,1776804638308,-150.0,8.712e-05,2]
[420959175,1776804638318,-217.63130726,8.712e-05,2]
[420959176,1776804638327,-150.0,8.712e-05,2]
[420959177,1776804638337,-255.04347443,8.712e-05,2]
[420959178,1776804638347,-150.0,8.714e-05,2]
[420959179,1776804638357,-570.60727274,8.715e-05,2]
[420959180,1776804638366,-500.0,8.715e-05,2]
[420959181,1776804638375,-500.0,8.715e-05,2]
[420959184,1776804638869,-500.0,8.715e-05,2]
[420959185,1776804638883,-500.0,8.715e-05,2]
[420959186,1776804638892,-500.0,8.715e-05,2]
[420959187,1776804638902,-571.89034264,8.715e-05,2]
[420959188,1776804638911,-500.0,8.715e-05,2]
[420959189,1776804638920,-500.0,8.715e-05,2]
[420959190,1776804638930,-500.0,8.715e-05,2]
[420959191,1776804638939,-500.0,8.715e-05,2]
[420959192,1776804638948,-8981.87669454,8.716e-05,2]
[420959193,1776804638961,-569.65991911,8.716e-05,2]
[420959194,1776804638973,-1141.47131779,8.716e-05,2]
[420959195,1776804638996,-1583.53603552,8.716e-05,2]
[420959200,1776804640305,-749.46900635,8.716e-05,2]
[420959201,1776804640362,-654.4863709,8.716e-05,2]
[420959202,1776804640573,-7615.0,8.716e-05,2]
[420959203,1776804640584,-18700.0,8.716e-05,2]
[420959217,1776804645904,-137378.2659602,8.716e-05,2]
[420959218,1776804645958,-6345.07328408,8.716e-05,2]
[420959219,1776804646222,-10145.03424842,8.716e-05,2]
[420959220,1776804646234,-5110.37493883,8.716e-05,2]
[420959221,1776804646246,-5460.00000146,8.716e-05,2]
[420959222,1776804646288,-1685.999998,8.716e-05,2]
[420959226,1776804784363,150.0,0.000165,30]
[420959227,1776805563400,-501.84501974,7.709e-05,2]
[420959228,1776805563887,-998.15498026,7.709e-05,2]
[420959229,1776805646823,150.0,7.531e-05,2]
[420959230,1776805702938,175.77,6.116e-05,2]
[420959247,1776805833753,-250.0,7.764e-05,2]
[420959248,1776805833763,-608.46,7.819e-05,2]
[420959249,1776805833772,-1070.47,7.845e-05,2]
[420959250,1776805833782,-250.0,7.852e-05,2]
[420959251,1776805833792,-300.0,7.944e-05,2]
[420959252,1776805833802,-1200.0,7.944e-05,2]
[420959253,1776805833811,-7930.796285,7.945e-05,2]
[420959254,1776805833821,-4815.703223,8.178e-05,2]
[420959255,1776805833831,-150.0,8.385e-05,2]
[420959256,1776805833840,-382.0,8.387e-05,2]
[420959257,1776805833850,-2000.0,8.411e-05,2]
[420959258,1776805833859,-1470.41,8.412e-05,2]
[420959259,1776805833870,-252.35,8.473e-05,2]
[420959260,1776805833880,-189.92,8.473e-05,2]
[420959261,1776805833890,-250.0,8.479e-05,2]
[420959262,1776805833899,-5021.776,8.514e-05,2]
[420959263,1776805833909,-323.927,8.514e-05,2]
[420959264,1776805833918,-150.0,8.514e-05,2]
[420959265,1776805833928,-563.54337141,8.514e-05,2]
[420959266,1776805833938,-500.0,8.514e-05,2]
[420959267,1776805833947,-387.40810912,8.514e-05,2]
[420959268,1776805833956,-177.23150719,8.514e-05,2]
[420959269,1776805833966,-524.76996469,8.514e-05,2]
[420959270,1776805833975,-295.53617222,8.514e-05,2]
[420959271,1776805833987,-101558.35280643,8.515e-05,2]
[420959272,1776805833999,-5137.0757759,8.515e-05,2]
[420959273,1776805834011,-27548.75936428,8.515e-05,2]
[420959274,1776805834023,-420.0,8.515e-05,2]
[420959275,1776805834050,-1254.09285305,8.515e-05,2]
[420959276,1776805834061,-8045.54526625,8.515e-05,2]
[420959277,1776805834089,-27100.28295567,8.515e-05,2]
[420959278,1776805834101,-3383.42896817,8.515e-05,2]
[420959279,1776805834112,-2350.76077348,8.515e-05,2]
[420959280,1776805834123,-1948.34190546,8.515e-05,2]
[420959281,1776805834134,-7393.85317137,8.515e-05,2]
[420959282,1776805834146,-2318.46368358,8.515e-05,2]
[420959283,1776805834168,-687.0,8.515e-05,2]
[420959285,1776805838223,-250.0,8.427e-05,2]
[420959286,1776805838233,-1157.7038,8.515e-05,2]
[420959288,1776805838384,-9561.50740717,8.515e-05,2]
[420959289,1776805838396,-314.03141464,8.515e-05,2]
[420959290,1776805838408,-467.4334257,8.515e-05,2]
[420959291,1776805838438,-339.88265974,8.515e-05,2]
[420959309,1776805838879,-10915.79728157,8.515e-05,2]
[420959310,1776805838890,-6275.55825757,8.515e-05,2]
[420959311,1776805838905,-4260.6368868,8.515e-05,2]
[420959312,1776805838919,-842.93806706,8.515e-05,2]
[420959314,1776805840232,-550.0,8.515e-05,2]
[420959315,1776805840243,-215192.28654526,8.515e-05,2]
[420959316,1776805840343,-878.77555066,8.515e-05,2]
[420959317,1776805840448,-335.18001523,8.515e-05,2]
[420959318,1776805840763,-420.35104813,8.515e-05,2]
[420959330,1776805843181,-10104.89260304,8.515e-05,2]
[420959331,1776805843193,-2643.59876163,8.515e-05,2]
[420959332,1776805843246,-65744.99955216,8.515e-05,2]
[420959333,1776805843256,-15859.3135,8.515e-05,2]
[420959334,1776805843266,-3678.18647707,8.54e-05,2]
[420959335,1776805843276,-151.0,8.612e-05,2]
[420959336,1776805843285,-151.0,8.612e-05,2]
[420959337,1776805843295,-284.37357065,8.612e-05,2]
[420959338,1776805843304,-9157.78702473,8.616e-05,2]
[420959339,1776805843314,-500.0,8.623e-05,2]
[420959340,1776805843323,-500.0,8.623e-05,2]
[420959341,1776805843332,-503.45930392,8.623e-05,2]
[420959342,1776805843341,-500.62439048,8.623e-05,2]
[420959343,1776805843350,-500.0,8.623e-05,2]
[420959344,1776805843360,-500.0,8.623e-05,2]
[420959345,1776805843369,-500.0,8.623e-05,2]
[420959346,1776805843378,-500.0,8.623e-05,2]
[420959347,1776805843387,-500.0,8.623e-05,2]
[420959348,1776805843396,-637.99582549,8.623e-05,2]
[420959349,1776805843405,-500.0,8.623e-05,2]
[420959350,1776805843414,-151.0,8.641e-05,2]
[420959351,1776805843423,-24069.5665408,8.642e-05,2]
[420959352,1776805843432,-143359.8589022,8.644e-05,2]
[420959353,1776805843442,-66486.9771756,8.644e-05,2]
[420959354,1776805843451,-10304.8057767,8.644e-05,2]
[420959355,1776805843462,-4545.9154765,8.644e-05,2]
[420959356,1776805843471,-7668.96127421,8.644e-05,2]
[420959357,1776805843485,-55817.95772679,8.644e-05,2]
[420959358,1776805843494,-151.0,8.644e-05,2]
[420959359,1776805843503,-151.0,8.644e-05,2]
[420959360,1776805843512,-151.0,8.644e-05,2]
[420959361,1776805843522,-151.0,8.644e-05,2]
[420959362,1776805843531,-385.4715325,8.644e-05,2]
[420959363,1776805843541,-396.075395,8.644e-05,2]
[420959364,1776805843550,-396.075395,8.644e-05,2]
[420959366,1776805843559,-396.075395,8.644e-05,2]
[420959368,1776805843569,-396.075395,8.644e-05,2]
[420959369,1776805843578,-396.075395,8.644e-05,2]
[420959370,1776805843587,-396.075395,8.644e-05,2]
[420959371,1776805843596,-396.075395,8.644e-05,2]
[420959372,1776805843605,-396.075395,8.644e-05,2]
[420959374,1776805843615,-151.0,8.644e-05,2]
[420959375,1776805843624,-151.0,8.644e-05,2]
[420959376,1776805843634,-151.0,8.644e-05,2]
[420959377,1776805843644,-151.0,8.644e-05,2]
[420959378,1776805843653,-151.0,8.644e-05,2]
[420959379,1776805843663,-151.0,8.644e-05,2]
[420959380,1776805843672,-151.0,8.644e-05,2]
[420959381,1776805843682,-151.0,8.644e-05,2]
[420959386,1776805844078,-500.0,8.644e-05,2]
[420959387,1776805844087,-6929.98,8.685e-05,2]
[420959388,1776805844096,-151.0,8.713e-05,2]
[420959389,1776805844106,-151.0,8.713e-05,2]
[420959390,1776805844115,-151.0,8.716e-05,2]
[420959391,1776805844125,-151.0,8.716e-05,2]
[420959392,1776805844134,-500.0,8.716e-05,2]
[420959393,1776805844143,-420.0,8.739e-05,2]
[420959394,1776805844153,-1680.0,8.739e-05,2]
[420959395,1776805844162,-600.0,8.741e-05,2]
[420959396,1776805844171,-508.98,8.741e-05,2]
[420959397,1776805844181,-152.0,8.751e-05,7]
[420959398,1776805844191,-152.0,8.751e-05,7]
[420959399,1776805844200,-2157.31,8.763e-05,2]
[420959400,1776805844209,-150.0,8.778e-05,2]
[420959401,1776805844218,-150.0,8.778e-05,2]
[420959402,1776805844227,-150.0,8.778e-05,2]
[420959403,1776805844236,-150.0,8.778e-05,2]
[420959404,1776805844246,-150.0,8.778e-05,2]
[420959405,1776805844256,-150.0,8.876e-05,2]
[420959406,1776805844265,-150.0,8.877e-05,2]
[420959407,1776805844274,-2300.0,8.9e-05,3]
[420959408,1776805844284,-150.0,8.917e-05,2]
[420959409,1776805844294,-500.0,8.918e-05,2]
[420959410,1776805844304,-9311.63,8.939e-05,2]
[420959411,1776805844313,-197.9,8.967e-05,2]
[420959412,1776805844323,-150.0,8.973e-05,2]
[420959413,1776805844332,-4700.0,9e-05,3]
[420959414,1776805844342,-150.0,9.022e-05,2]
[420959415,1776805844351,-640.0468013,9.03e-05,2]
[420959416,1776805844360,-5448.2218576,9.03e-05,2]
[420959417,1776805844370,-150.1832961,9.03e-05,2]
[420959418,1776805844379,-150.0,9.041e-05,2]
[420959419,1776805844388,-150.0,9.057e-05,2]
[420959420,1776805844398,-150.0,9.071e-05,2]
[420959421,1776805844407,-12747.03,9.088e-05,2]
[420959422,1776805844418,-150.0,9.168e-05,2]
[420959423,1776805844428,-1000.0,9.171e-05,2]
[420959424,1776805844438,-1000.0,9.171e-05,2]
[420959425,1776805844448,-1000.0,9.171e-05,2]
[420959426,1776805844457,-1000.0,9.171e-05,2]
[420959427,1776805844466,-1000.0,9.171e-05,2]
[420959428,1776805844476,-1000.0,9.171e-05,2]
[420959429,1776805844486,-175.77,9.173e-05,2]
[420959430,1776805844496,-500.0,9.192e-05,2]
[420959431,1776805844505,-150.0,9.196e-05,2]
[420959432,1776805844515,-150.0,9.205e-05,2]
[420959433,1776805844525,-150.0,9.266e-05,2]
[420959434,1776805844535,-150.0,9.266e-05,2]
[420959435,1776805844544,-150.0,9.335e-05,2]
[420959436,1776805844554,-150.0,9.363e-05,2]
[420959437,1776805844564,-255.0,9.366e-05,2]
[420959438,1776805844573,-707.76,9.367e-05,2]
[420959439,1776805844583,-150.0,9.37e-05,2]
[420959440,1776805844592,-578.20924308,9.39e-05,2]
[420959441,1776805844602,-721.12765535,9.39e-05,2]
[420959442,1776805844611,-209.40437684,9.39e-05,2]
[420959443,1776805844620,-9552.16786547,9.39e-05,2]
[420959444,1776805844630,-500.0,9.39e-05,2]
[420959445,1776805844639,-200.0,9.39e-05,2]
[420959446,1776805844648,-1428.38747117,9.39e-05,2]
[420959447,1776805844658,-743.50770149,9.39e-05,2]
[420959448,1776805844667,-209.40437684,9.39e-05,2]
[420959449,1776805844677,-2000.0,9.39e-05,2]
[420959450,1776805844686,-2000.0,9.39e-05,2]
[420959451,1776805844695,-2000.0,9.39e-05,2]
[420959452,1776805844704,-2000.0,9.39e-05,2]
[420959453,1776805844714,-2000.0,9.39e-05,2]
[420959454,1776805844723,-2000.0,9.39e-05,2]
[420959455,1776805844732,-2000.0,9.39e-05,2]
[420959456,1776805844742,-155.00437998,9.39e-05,2]
[420959457,1776805844751,-151.0,9.39e-05,2]
[420959458,1776805844761,-174.61919141,9.39e-05,2]
[420959459,1776805844771,-693.3919763,9.39e-05,2]
[420959460,1776805844781,-1000.0,9.39e-05,2]
[420959461,1776805844791,-724.09468125,9.39e-05,2]
[420959462,1776805844801,-151.0,9.39e-05,2]
[420959463,1776805844810,-156.587,9.39e-05,2]
[420959464,1776805844820,-196.21675871,9.39e-05,2]
[420959465,1776805844830,-279.9045709,9.39e-05,2]
[420959466,1776805844839,-235.75327194,9.39e-05,2]
[420959467,1776805844848,-244.476143,9.39e-05,2]
[420959468,1776805844858,-253.52176029,9.39e-05,2]
[420959469,1776805844867,-225.60716926,9.39e-05,2]
[420959470,1776805844876,-151.0,9.39e-05,2]
[420959471,1776805844886,-262.90206542,9.39e-05,2]
[420959472,1776805844895,-272.62944185,9.39e-05,2]
[420959473,1776805844904,-282.71673119,9.39e-05,2]
[420959474,1776805844914,-293.17725025,9.39e-05,2]
[420959475,1776805844923,-304.02480851,9.39e-05,2]
[420959476,1776805844932,-315.27372642,9.39e-05,2]
[420959477,1776805844942,-326.9388543,9.39e-05,2]
[420959478,1776805844951,-339.03559191,9.39e-05,2]
[420959479,1776805844960,-209.40437684,9.39e-05,2]
[420959480,1776805844970,-9905.5980765,9.445e-05,2]
[420959481,1776805844979,-500.0,9.445e-05,2]
[420959482,1776805844988,-151.0,9.445e-05,2]
[420959483,1776805844998,-150.0,9.461e-05,2]
[420959484,1776805845008,-2000.0,9.463e-05,2]
[420959485,1776805845018,-495.02160344,9.466e-05,2]
[420959486,1776805845028,-150.0,9.475e-05,2]
[420959487,1776805845037,-500.0,9.479e-05,2]
[420959488,1776805845046,-500.0,9.5e-05,2]
[420959489,1776805845056,-10272.10520533,9.5e-05,2]
[420959490,1776805845065,-151.0,9.5e-05,2]
[420959491,1776805845075,-200.0,9.509e-05,2]
[420959492,1776805845084,-150.0,9.51e-05,2]
[420959493,1776805845094,-150.0,9.534e-05,2]
[420959494,1776805845103,-25051.033129,9.544e-05,2]
[420959495,1776805845113,-4009.027914,9.544e-05,2]
[420959496,1776805845123,-9029.696255,9.544e-05,2]
[420959497,1776805845132,-10652.17309792,9.555e-05,2]
[420959498,1776805845142,-500.0,9.555e-05,2]
[420959499,1776805845151,-151.0,9.555e-05,2]
[420959500,1776805845161,-396.075395,9.555e-05,2]
[420959501,1776805845170,-396.075395,9.555e-05,2]
[420959502,1776805845179,-396.075395,9.555e-05,2]
[420959503,1776805845188,-396.075395,9.555e-05,2]
[420959504,1776805845198,-151.0,9.555e-05,2]
[420959505,1776805845207,-151.0,9.555e-05,2]
[420959506,1776805845216,-151.0,9.555e-05,2]
[420959507,1776805845225,-151.0,9.555e-05,2]
[420959508,1776805845235,-150.0,9.558e-05,2]
[420959509,1776805845244,-11046.30350255,9.61e-05,2]
[420959510,1776805845255,-500.0,9.61e-05,2]
[420959511,1776805845264,-151.0,9.61e-05,2]
[420959512,1776805845273,-587.0,9.612e-05,2]
[420959513,1776805845283,-2351.0,9.612e-05,2]
[420959514,1776805845292,-150.0,9.614e-05,2]
[420959515,1776805845301,-151.0,9.633e-05,2]
[420959516,1776805845311,-163.19,9.647e-05,2]
[420959517,1776805845320,-150.0,9.656e-05,2]
[420959518,1776805845330,-11455.01673214,9.665e-05,2]
[420959519,1776805845339,-500.0,9.665e-05,2]
[420959520,1776805845349,-151.0,9.665e-05,2]
[420959521,1776805845359,-151.0,9.688e-05,2]
[420959522,1776805845369,-151.0,9.688e-05,2]
[420959523,1776805845379,-150.0,9.699e-05,2]
[420959524,1776805845389,-1500.42334806,9.718e-05,2]
[420959525,1776805845398,-1630.66124612,9.718e-05,2]
[420959526,1776805845408,-1500.0,9.718e-05,2]
[420959527,1776805845421,-1500.0,9.718e-05,2]
[420959528,1776805845430,-500.0,9.718e-05,2]
[420959529,1776805845440,-1500.0,9.718e-05,2]
[420959530,1776805845450,-11878.85235123,9.72e-05,2]
[420959531,1776805845460,-500.0,9.72e-05,2]
[420959532,1776805845469,-213.9027629,9.72e-05,2]
[420959533,1776805845478,-2299.3129632,9.739e-05,2]
[420959534,1776805845488,-1014.3308483,9.739e-05,2]
[420959535,1776805845497,-396.075395,9.739e-05,2]
[420959536,1776805845506,-396.075395,9.739e-05,2]
[420959537,1776805845515,-396.075395,9.739e-05,2]
[420959538,1776805845525,-396.075395,9.739e-05,2]
[420959539,1776805845534,-151.0,9.739e-05,2]
[420959540,1776805845544,-151.0,9.739e-05,2]
[420959541,1776805845553,-151.0,9.739e-05,2]
[420959542,1776805845562,-151.0,9.739e-05,2]
[420959543,1776805845572,-31987.9082757,9.739e-05,2]
[420959544,1776805845581,-14835.2498649,9.739e-05,2]
[420959545,1776805845591,-14165.846404,9.739e-05,2]
[420959546,1776805845600,-230.551349,9.743e-05,2]
[420959547,1776805845611,-150.0,9.753e-05,2]
[420959548,1776805845620,-150.0,9.753e-05,2]
[420959549,1776805845630,-150.0,9.753e-05,2]
[420959550,1776805845639,-12318.36988823,9.775e-05,2]
[420959551,1776805845649,-500.0,9.775e-05,2]
[420959552,1776805845659,-151.0,9.795e-05,2]
[420959553,1776805845668,-151.0,9.807e-05,2]
[420959554,1776805845677,-151.0,9.807e-05,2]
[420959555,1776805845687,-151.0,9.807e-05,2]
[420959556,1776805845697,-12774.14957409,9.83e-05,2]
[420959557,1776805845706,-500.0,9.83e-05,2]
[420959558,1776805845716,-151.0,9.853e-05,2]
[420959559,1776805845726,-239.788149,9.853e-05,2]
[420959560,1776805845735,-150.0,9.863e-05,2]
[420959561,1776805845745,-250.0,9.863e-05,2]
[420959562,1776805845754,-250.0,9.863e-05,2]
[420959563,1776805845764,-202.92,9.863e-05,2]
[420959565,1776805845773,-5370.6462369,9.865e-05,2]
[420959566,1776805845783,-432.13635231,9.882e-05,2]
[420959567,1776805845793,-13246.79310833,9.885e-05,2]
[420959568,1776805845803,-500.0,9.885e-05,2]
[420959569,1776805845814,-161.0,9.89e-05,2]
[420959570,1776805845824,-163.0,9.89e-05,2]
[420959571,1776805845833,-2854.769,9.9e-05,2]
[420959572,1776805845843,-242.0,9.931e-05,5]
[420959573,1776805845852,-273.0,9.931e-05,5]
[420959574,1776805845862,-217.15233878,9.938e-05,2]
[420959575,1776805845871,-200.0,9.938e-05,2]
[420959576,1776805845880,-1481.23780761,9.938e-05,2]
[420959577,1776805845890,-771.01748645,9.938e-05,2]
[420959578,1776805845899,-217.15233878,9.938e-05,2]
[420959579,1776805845909,-181.08010149,9.938e-05,2]
[420959580,1776805845918,-719.04747942,9.938e-05,2]
[420959581,1776805845928,-290.26104003,9.938e-05,2]
[420959582,1776805845937,-217.15233878,9.938e-05,2]
[420959583,1776805845947,-13736.92445334,9.94e-05,2]
[420959584,1776805845957,-500.0,9.94e-05,2]
[420959585,1776805845967,-4142.0,9.945e-05,2]
[420959586,1776805845976,-396.075395,9.973e-05,2]
[420959588,1776805845985,-396.075395,9.973e-05,2]
[420959590,1776805845995,-396.075395,9.973e-05,2]
[420959592,1776805846005,-396.075392,9.973e-05,2]
[420959594,1776805846015,-513.0460697,9.983e-05,2]
[420959596,1776805846024,-226.3278046,9.983e-05,2]
[420959597,1776805846033,-7137.4670963,9.983e-05,2]
[420959598,1776805846043,-3310.1916782,9.983e-05,2]
[420959599,1776805846052,-3160.8275767,9.983e-05,2]
[420959600,1776805846062,-151.0,9.984e-05,2]
[420959601,1776805846071,-152.869871,9.984e-05,2]
[420959602,1776805846080,-151.0,9.984e-05,2]
[420959603,1776805846091,-256.742287,9.984e-05,2]
[420959604,1776805846100,-151.0,9.997e-05,2]
[420959605,1776805846110,-151.0,9.997e-05,2]
[420959606,1776805846119,-2929.22056581,9.999e-05,2]
[420959607,1776805846128,-88175.14041246,0.0001,2]
[420959608,1776805846138,-895.84028195,0.0001,2]
[420959609,1776805846147,-2758.53683048,0.0001,2]
[420959610,1776805846156,-16200.41774914,0.0001,2]
[420959611,1776805846166,-440.60436936,0.0001,2]
[420959612,1776805846175,-1004.91518622,0.0001,2]
[420959613,1776805846185,-909.29151909,0.0001,2]
[420959614,1776805846194,-1027.02725303,0.0001,2]
[420959615,1776805846204,-151.0,0.0001,2]
[420959616,1776805846213,-1000.0,0.0001,2]
[420959617,1776805846223,-1000.0,0.0001,2]
[420959618,1776805846232,-1000.0,0.0001,2]
[420959619,1776805846241,-1000.0,0.0001,2]
[420959620,1776805846251,-1000.0,0.0001,2]
[420959621,1776805846260,-1000.0,0.0001,2]
[420959622,1776805846270,-1000.0,0.0001,2]
[420959623,1776805846279,-1049.85153819,0.0001,2]
[420959624,1776805846289,-424.30903302,0.0001,2]
[420959625,1776805846299,-74399.46631765,0.0001,2]
[420959626,1776805846308,-151.0,0.0001,2]
[420959627,1776805846317,-159.45207365,0.0001,2]
[420959628,1776805846326,-159.45207365,0.0001,2]
[420959629,1776805846336,-159.45207365,0.0001,2]
[420959630,1776805846345,-1739.28950154,0.0001,2]
[420959631,1776805846355,-200.0,0.0001,2]
[420959632,1776805846365,-500.0,0.0001,2]
[420959633,1776805846374,-151.0,0.0001,2]
[420959634,1776805846384,-500.0,0.0001,2]
[420959635,1776805846395,-151.0,0.0001,2]
[420959636,1776805846404,-151.0,0.0001,2]
[420959637,1776805846413,-7100.0,0.0001,3]
[420959638,1776805846422,-151.0,0.0001,2]
[420959639,1776805846431,-189.78674529,0.0001,2]
[420959640,1776805846441,-151.0,0.0001,2]
[420959641,1776805846450,-151.0,0.0001,2]
[420959642,1776805846459,-151.0,0.0001,2]
[420959643,1776805846468,-151.0,0.0001,2]
[420959644,1776805846477,-151.0,0.0001,2]
[420959645,1776805846486,-151.0,0.0001,2]
[420959646,1776805846496,-151.0,0.0001,2]
[420959647,1776805846505,-151.0,0.0001,2]
[420959648,1776805846516,-151.0,0.0001,2]
[420959649,1776805846525,-151.0,0.0001,2]
[420959650,1776805846534,-151.0,0.0001,2]
[420959651,1776805846544,-151.0,0.0001,2]
[420959652,1776805846553,-151.0,0.0001,2]
[420959653,1776805846563,-151.0,0.0001,2]
[420959654,1776805846572,-151.0,0.0001,2]
[420959655,1776805846582,-500.0,0.0001,2]
[420959656,1776805846591,-151.0,0.0001,2]
[420959657,1776805846601,-500.0,0.0001,2]
[420959658,1776805846610,-151.0,0.0001,2]
[420959660,1776805846620,-500.0,0.0001,2]
[420959662,1776805846629,-151.0,0.0001,2]
[420959663,1776805846638,-500.0,0.0001,2]
[420959664,1776805846648,-151.0,0.0001,2]
[420959665,1776805846661,-500.0,0.0001,2]
[420959666,1776805846670,-151.0,0.0001,2]
[420959667,1776805846680,-324.58914921,0.0001,2]
[420959668,1776805846690,-151.0,0.0001,2]
[420959669,1776805846699,-151.0,0.0001,2]
[420959670,1776805846709,-151.0,0.0001,2]
[420959671,1776805846718,-151.0,0.0001,2]
[420959672,1776805846727,-151.0,0.0001,2]
[420959673,1776805846736,-151.0,0.0001,2]
[420959674,1776805846746,-151.0,0.0001,2]
[420959675,1776805846755,-1386.78395259,0.0001,2]
[420959676,1776805846766,-296.2963,0.0001,2]
[420959677,1776805846775,-296.2963,0.0001,2]
[420959678,1776805846784,-296.29629,0.0001,2]
[420959679,1776805846794,-296.2963,0.0001,2]
[420959680,1776805846804,-296.2963,0.0001,2]
[420959681,1776805846814,-151.0,0.0001,2]
[420959682,1776805846823,-296.29629,0.0001,2]
[420959683,1776805846832,-774.63771957,0.0001,2]
[420959684,1776805846842,-26981.51529606,0.00010025,2]
[420959685,1776805846851,-151.0,0.00010059,2]
[420959686,1776805846860,-1600.0,0.00010135,2]
[420959687,1776805846870,-1198.3531549,0.00010138,2]
[420959688,1776805846880,-160.0,0.00010173,2]
[420959689,1776805846888,-1215.6626156,0.00010174,2]
[420959690,1776805846898,-1232.66260711,0.00010204,2]
[420959691,1776805846907,-6031.0,0.00010217,2]
[420959692,1776805846916,-2474.0,0.00010217,2]
[420959693,1776805846925,-3780.0,0.00010217,2]
[420959694,1776805846935,-2000.0,0.00010266,2]
[420959695,1776805846944,-2000.0,0.00010266,2]
[420959696,1776805846953,-2000.0,0.00010266,2]
[420959697,1776805846962,-433.0,0.00010302,2]
[420959698,1776805846972,-233.9913224,0.0001031,2]
[420959699,1776805846982,-1116.99999999,0.00010402,2]
[420959700,1776805846991,-271.2509941,0.00010429,2]
[420959701,1776805847002,-600.0,0.00010446,2]
[420959702,1776805847011,-508.98,0.00010446,2]
[420959703,1776805847021,-150.0,0.00010481,2]
[420959704,1776805847030,-225.18697532,0.00010486,2]
[420959705,1776805847040,-200.0,0.00010486,2]
[420959706,1776805847049,-1536.04360649,0.00010486,2]
[420959707,1776805847058,-799.54513345,0.00010486,2]
[420959708,1776805847068,-225.18697532,0.00010486,2]
[420959709,1776805847077,-187.78006525,0.00010486,2]
[420959710,1776805847086,-251.09773211,0.00010486,2]
[420959711,1776805847095,-258.62516557,0.00010486,2]
[420959712,1776805847105,-225.18697532,0.00010486,2]
[420959713,1776805847114,-2000.0,0.00010514,2]
[420959714,1776805847123,-163.19,0.00010524,2]
[420959715,1776805847132,-151.0,0.00010543,2]
[420959716,1776805847142,-150.0,0.00010546,2]
[420959717,1776805847151,-623.0,0.00010546,2]
[420959718,1776805847169,-3530.0,0.00010546,2]
[420959719,1776805847181,-1265.0,0.00010546,2]
[420959720,1776805847190,-1219.0,0.00010546,2]
[420959721,1776805847200,-927.0,0.00010546,2]
[420959722,1776805847210,-200.0,0.00010548,2]
[420959723,1776805847220,-586.54570469,0.00010548,2]
[420959724,1776805847229,-599.22175956,0.00010549,2]
[420959725,1776805847239,-150.0,0.00010555,2]
[420959726,1776805847248,-156.842364,0.00010563,2]
[420959727,1776805847258,-823.0,0.00010574,2]
[420959728,1776805847268,-3292.0,0.00010574,2]
[420959729,1776805847277,-37212.0,0.00010603,2]
[420959730,1776805847287,-1142.8347323,0.00010624,2]
[420959731,1776805847296,-105433.36173462,0.0001069,3]
[420959732,1776805849417,-14882.07279104,0.0001069,3]
[420959733,1776805849429,-423470.08928287,0.0001069,3]
[420959734,1776805849444,-604.0,0.0001069,3]
[420959735,1776805849471,-1882.14744404,0.0001069,3]
[420959736,1776805849918,-376.517492,0.0001069,3]
[420959737,1776805849942,-2235.0,0.0001069,3]
[420959738,1776805849953,-335.819307,0.0001069,3]
[420959889,1776806257843,673.67,0.000165,30]
[420960043,1776807032406,-259.0,8.374e-05,2]
[420960044,1776807032419,-1904.88539149,8.374e-05,2]
[420960045,1776807032431,-259.88460929,8.374e-05,2]
[420960046,1776807032444,-150.0,8.374e-05,2]
[420960047,1776807032457,-2226.89,8.555e-05,2]